[Event "4NCL Div 1 2024-25"]
[Site "England"]
[Date "2025.01.25"]
[Round "3.17"]
[White "Kovchan, Alexander"]
[Black "Makkar, Rajat"]
[Result "1-0"]
[Annotator "TA"]
[ECO "B58"]
[WhiteElo "2453"]
[BlackElo "2432"]
[PlyCount "67"]
[EventDate "2024.11.23"]
[EventType "team-tourn"]
[EventCountry "ENG"]
[SourceTitle "playchess.com"]
[Source "ChessBase"]
[SourceQuality "1"]
[TimeControl "40/6000+30:3000+30"]

{[%evp 11,67,9,14,16,24,11,6,0,21,22,22,16,25,13,24,0,23,-50,-16,-13,0,0,0,-4,0,0,7,4,0,0,0,0,0,0,47,33,47,33,37,33,47,40,145,153,139,143,143,147,161,160,155,154,1584,1492,1519,1375,1234,1226]} 1. e4 {[%emt 0:12:51]} c5 {[%emt 0:10:35]} 2. Nf3 {[%emt 0:00:07]} d6 {[%emt 0:00:10]} 3. d4 {[%emt 0:00:06]} cxd4 {[%emt 0:00:10]} 4. Nxd4 {[%emt 0:00:07]} Nf6 {[%emt 0:00:09]} 5. Nc3 {[%emt 0:00:06]} Nc6 {[%emt 0:00:10]} 6. Be2 {[%emt 0:00:14]} e5 {[%emt 0:00:15]} 7. Nf3 {[%emt 0:00:07] B58: Classical Sicilian: 6 Be2.} Be6 {[%emt 0:00:04]} 8. Ng5 {[%emt 0:04:00]} Be7 {[%emt 0:00:41]} 9. a3 $146 {[%emt 0:09:59] The position is equal.} (9. Nxe6 fxe6 10. O-O O-O 11. Bc4 Qd7 12. f4 Kh8 13. Bb3 b5 14. a3 a5 15. fxe5 Nxe5 {0-1 Masic,P (2176)-Narayanan,S (2533) Vojvodina op 14th 2024 (8)}) 9... O-O {[%emt 0:05:23]} 10. Nxe6 {[%emt 0:04:59]} fxe6 {[%emt 0:00:07]} 11. Bc4 {[%emt 0:00:33]} Qd7 {[%emt 0:01:11]} 12. Ba2 {[%emt 0:04:25]} Kh8 {[%emt 0:08:53]} 13. Bg5 {[%emt 0:12:08]} h6 {[%emt 0:07:17] [#]} 14. h4 {[%emt 0:04:45]} b5 {[%emt 0:06:30]} (14... hxg5 $2 15. hxg5+ Kg8 (15... Nh7 16. Qh5 Kg8 17. g6 Rf6 18. Qxh7+ Kf8 19. Qh8#) 16. gxf6 Rxf6 17. Qg4 $18) (14... Rac8 $5) 15. Qd2 {[%emt 0:03:30][%cal Og5h6]} a5 {[%emt 0:06:39]} (15... hxg5 16. hxg5+ Kg8 (16... Nh7 $2 17. g6 $18) 17. gxf6 Rxf6 18. Nd5 $18 (18. Nxb5 Qb7 $14)) 16. Bxf6 {[%emt 0:04:21]} Rxf6 {[%emt 0:03:39]} 17. Nxb5 {[%emt 0:01:38][%cal Bc3b5,Bb5d4,Bd4f3,Bf3g5,Bg5e4][%mdl 32]} Rb8 {[%emt 0:03:28]} 18. Qd3 {[%emt 0:04:50]} d5 {[%emt 0:06:19]} 19. exd5 {[%emt 0:01:50]} exd5 {[%emt 0:03:17]} 20. Bxd5 {[%emt 0:08:40]} Nd4 {[%emt 0:02:48]} 21. Nxd4 {[%emt 0:01:57]} Qxd5 {[%emt 0:02:01]} 22. Nf3 {[%emt 0:00:13]} Qb7 {[%emt 0:04:48] [#]} (22... Qxd3 $11 {might be stronger.} 23. cxd3 Rxb2) 23. Ng5 $1 $14 {[%emt 0:04:17]} g6 {[%emt 0:00:15][%cal Ob7g2]} 24. Ne4 {[%emt 0:03:43]} Rf4 {[%emt 0:04:50]} 25. f3 {[%emt 0:01:14]} Rd8 {[%emt 0:06:02]} 26. Qe3 {[%emt 0:01:15]} (26. Qc3 $5 Bxh4+ 27. Kf1 $15) 26... Rd4 {[%emt 0:01:49]} (26... Bxh4+ $14 27. g3 Rxe4 (27... Qxb2 $2 28. O-O $18) 28. fxe4 Bxg3+ 29. Qxg3 Qxe4+ 30. Kf2 Rd2+ 31. Kg1 Qd4+ 32. Kf1 Qc4+ 33. Kg1 Qc5+ 34. Kf1 Qb5+ (34... Qc4+ 35. Kg1 $11) 35. Kg1 (35. c4 Qxc4+ 36. Kg1 Qc5+ 37. Kf1 Qb5+ 38. Kg1 Qb6+ 39. Kf1 Qb5+ 40. Kg1 Qb6+ 41. Kf1 Qa6+ 42. Kg1 Qb6+ $11) 35... Qb6+ 36. Kf1 Qb5+) 27. O-O $1 $16 {[%emt 0:02:58] Hoping for g3.} Qc7 {[%emt 0:08:21][%cal Od4e4] [#]} 28. b4 $1 {[%emt 0:01:42]} axb4 {[%emt 0:04:21]} 29. axb4 {[%emt 0:00:06]} Bxb4 {[%emt 0:01:56][%cal Od4e4] [#]} 30. Ra8+ $1 {[%emt 0:01:50]} ({Much worse is} 30. c3 $6 Rdxe4 31. Ra8+ (31. fxe4 $2 {loses.} Bc5 $19) 31... Kg7 $11) 30... Kg7 {[%emt 0:00:36][%cal Od4e4] [#] and ...Rdxe4! would now be decisive} 31. Qb3 $1 {[%emt 0:02:24][%csl Ga8][%cal Rb3g8]} Rdxe4 $2 {[%emt 0:04:25]} (31... Qc4 $16 32. Ra7+ Rf7 33. Rxf7+ Kxf7) 32. Qg8+ $18 {[%emt 0:00:40] White is clearly winning.} ({Not} 32. fxe4 Qb6+ (32... Bc5+ $2 33. Kh2 $18) 33. Kh2 Rxf1 $16) 32... Kf6 {[%emt 0:00:01]} 33. Ra6+ {[%emt 0:00:35]} (33. fxe4 Qb6+ (33... Qxc2 34. Ra6+) (33... Bc5+ $2 34. Kh2 $18) 34. Kh2 Rxf1 $16) 33... Bd6 {[%emt 0:02:24]} 34. fxe4 {[%emt 0:01:18] Weighted Error Value: White=0.06 (flawless) /Black=0.38  Loses game:     	---       	Black=1      Mistake:       	White=1     	Black=2      Inaccurate:     	---       	Black=1      OK:         	White=7     	Black=5      Best:        	White=4     	Black=2      Strong:       	White=2     	---        Brilliant:      	White=1     	---} 1-0

[Event "4NCL Div 1 2024-25"]
[Site "England"]
[Date "2025.01.25"]
[Round "3.18"]
[White "Roberson, Peter T"]
[Black "Macak, Stefan"]
[Result "1-0"]
[Annotator "TA"]
[ECO "B51"]
[WhiteElo "2432"]
[BlackElo "2310"]
[PlyCount "89"]
[EventDate "2024.11.23"]
[EventType "team-tourn"]
[EventCountry "ENG"]
[SourceTitle "playchess.com"]
[Source "ChessBase"]
[SourceQuality "1"]
[TimeControl "40/6000+30:3000+30"]

{[%evp 9,89,8,19,4,2,0,0,0,4,11,6,0,0,0,0,15,24,12,15,0,5,2,0,2,33,32,28,22,32,-7,56,39,50,27,41,22,35,35,21,35,35,27,39,21,23,-54,-27,-50,0,-100,-39,-54,-31,-161,-169,-157,-163,-141,-144,-145,-139,-135,0,0,29,22,785,786,29990,29991,29992,29993,29993,29994,29994,29995,29995,29996,29996,29997,29997,235]} 1. e4 {[%emt 0:10:07]} c5 {[%emt 0:10:07]} 2. Nf3 {[%emt 0:00:19]} d6 {[%emt 0:00:09]} 3. Bb5+ {[%emt 0:00:19]} Nd7 {[%emt 0:01:16]} 4. Ba4 {[%emt 0:01:46]} Ngf6 {[%emt 0:05:08]} 5. O-O {[%emt 0:00:15]} e6 {[%emt 0:09:46]} 6. d3 {[%emt 0:01:30] B51: Sicilian: Moscow Variation (3 Bb5+) without 3...Bd7.} Be7 {[%emt 0:01:30]} 7. c4 {[%emt 0:00:18]} O-O {[%emt 0:02:10]} 8. Nc3 {[%emt 0:00:06] The position is equal.} a6 {[%emt 0:05:26]} 9. Qe2 {[%emt 0:03:05]} Qc7 {[%emt 0:04:12]} 10. Ne1 {[%emt 0:04:58]} b6 $146 {[%emt 0:07:54]} (10... Ne5 11. f4 Nc6 12. Nf3 Nd4 13. Nxd4 cxd4 14. Nb1 Nd7 15. Nd2 b5 16. Bb3 Nc5 {0-1 Anton Guijarro,D (2670)-Grischuk,A (2732) Wch Rapid Samarkand 2023 (13)}) 11. Bg5 {[%emt 0:10:05]} Bb7 {[%emt 0:18:59]} 12. f4 {[%emt 0:00:54]} Nb8 {[%emt 0:04:33]} 13. Nf3 {[%emt 0:10:35]} Nc6 {[%emt 0:02:09]} 14. Rae1 {[%emt 0:02:50]} Nd4 {[%emt 0:03:19]} 15. Nxd4 {[%emt 0:04:26]} cxd4 {[%emt 0:00:15]} 16. Nb1 {[%emt 0:00:50][%cal Bc3b1,Bb1d2,Bd2f3,Bf3h4,Bh4g6][%mdl 32]} Ne8 {[%emt 0:14:42]} 17. Bxe7 {[%emt 0:02:37]} Qxe7 {[%emt 0:00:52]} 18. Nd2 {[%emt 0:01:40]} e5 {[%emt 0:01:47]} 19. Rf3 {[%emt 0:04:23]} Nc7 {[%emt 0:03:38]} (19... Nf6 $11) 20. f5 $14 {[%emt 0:01:36]} f6 {[%emt 0:05:23]} 21. Rh3 {[%emt 0:06:05]} a5 {[%emt 0:02:10]} 22. Nf3 {[%emt 0:07:30]} Na6 {[%emt 0:00:30]} 23. Nh4 {[%emt 0:00:04]} Qf7 {[%emt 0:01:26] Repels Ng6} 24. Qg4 {[%emt 0:01:57][%cal Oh4g6]} Rfd8 {[%emt 0:02:36] [#]} 25. Ng6 $1 {[%emt 0:01:25][%cal Oh3h7] White threatens Rxh7! and mate. Repels Nc5} h6 {[%emt 0:00:03]} 26. Bd1 {[%emt 0:17:23]} Nc5 {[%emt 0:00:05]} 27. Qe2 {[%emt 0:00:22] [#]} (27. b3 $11) 27... b5 $1 $15 {[%emt 0:00:44]} 28. cxb5 {[%emt 0:01:03]} Qxa2 {[%emt 0:01:53]} (28... a4 $1 $15) 29. Qd2 {[%emt 0:01:33] [#]} (29. Ne7+ $11 Kf7 30. Ng6) 29... Qf7 {[%emt 0:00:26]} ({Better is} 29... Rd7 $1 $17 30. Rf1 a4) 30. Bh5 {[%emt 0:02:12][%cal Og6e5] Nxe5! is the strong threat.} Qd7 {[%emt 0:00:07][%cal Od8e8]} 31. b4 {[%emt 0:01:38]} (31. g4 $15) 31... axb4 $19 {[%emt 0:00:56]} 32. Qxb4 {[%emt 0:00:03]} Ra4 {[%emt 0:00:29]} 33. Qb2 {[%emt 0:01:27]} Rda8 {[%emt 0:00:14] Black plays on the queen side and is better} 34. Rb1 {[%emt 0:01:13]} Ra2 {[%emt 0:01:02]} 35. Qc1 {[%emt 0:11:26]} R8a4 {[%emt 0:01:12] Repels Qc4+} (35... Kh7 $17 {[%cal Oc5d3] Hoping for ...Nxd3!.} 36. Nxe5 fxe5 37. Bg6+ Kg8) 36. Rg3 $11 {[%emt 0:00:00][%cal Og6e5]} R2a3 {[%emt 0:00:26]} (36... Ra1 $5 37. Rxa1 Nb3 $11) 37. Nxe5 {[%emt 0:00:00]} fxe5 {[%emt 0:00:27][%mdl 8192] [#]} (37... dxe5 $11 38. Qxc5 Ra1) 38. f6 $1 $18 {[%emt 0:00:00]} (38. Qxh6 $2 Ra1 (38... Rxd3 $2 {perishes.} 39. f6 $18) 39. Rd1 Rxd1+ 40. Bxd1 Ra1 $19) 38... g5 {[%emt 0:00:56] [#]} 39. Rxg5+ $1 {[%emt 0:00:00][%mdl 512] White mates.} hxg5 {[%emt 0:00:25]} (39... Kf8 40. Rg6) 40. Qxg5+ {[%emt 0:00:00]} Kf8 {[%emt 0:00:36]} 41. Qh6+ {[%emt 0:49:26]} Kg8 {[%emt 0:50:24][%cal Bf8g8,Bg8f7,Bf7e8][%mdl 32]} 42. f7+ {[%emt 0:01:19]} Qxf7 {[%emt 0:00:00]} 43. Bxf7+ {[%emt 0:00:00]} Kxf7 {[%emt 0:00:00]} 44. Rf1+ {[%emt 0:00:00]} Ke8 {[%emt 0:00:00]} 45. Qf8+ {[%emt 0:00:00] Weighted Error Value: White=0.14 (very precise) /Black=0.41  Loses game:     	---       	Black=1      Mistake:       	White=3     	Black=4      Inaccurate:     	White=1     	Black=3      OK:         	White=16    	Black=16     Strong:       	White=1     	---} 1-0

[Event "4NCL Div 1 2024-25"]
[Site "England"]
[Date "2025.01.25"]
[Round "3.19"]
[White "Badacsonyi, Stanley"]
[Black "O`Gorman, Tom"]
[Result "1/2-1/2"]
[Annotator "TA"]
[ECO "D35"]
[WhiteElo "2298"]
[BlackElo "2380"]
[PlyCount "50"]
[EventDate "2024.11.23"]
[EventType "team-tourn"]
[EventCountry "ENG"]
[SourceTitle "playchess.com"]
[Source "ChessBase"]
[SourceQuality "1"]
[TimeControl "40/6000+30:3000+30"]

{[%evp 13,50,7,21,23,21,18,22,7,3,16,27,17,16,5,5,8,46,70,81,-16,81,88,87,44,58,50,183,14,7,0,0,0,14,17,7,0,20,0,0]} 1. d4 {[%emt 0:10:01]} d5 {[%emt 0:10:09]} 2. c4 {[%emt 0:00:18]} e6 {[%emt 0:00:08]} 3. Nc3 {[%emt 0:00:04]} Nf6 {[%emt 0:00:06]} 4. cxd5 {[%emt 0:00:05]} exd5 {[%emt 0:00:06]} 5. Bg5 {[%emt 0:00:05]} c6 {[%emt 0:00:08]} 6. e3 {[%emt 0:00:03]} Bd6 {[%emt 0:00:09]} 7. Bd3 {[%emt 0:00:26]} O-O {[%emt 0:00:12]} 8. Nge2 {[%emt 0:00:23] D35: Queen's Gambit Declined: Exchange Variation.} Re8 {[%emt 0:00:29]} 9. h3 {[%emt 0:00:54]} a5 {[%emt 0:12:33]} 10. Qc2 {[%emt 0:02:24][%cal Od3h7] Threatening Bxh7+!.} h6 {[%emt 0:00:15]} 11. Bh4 {[%emt 0:01:18]} Na6 {[%emt 0:00:20]} 12. a3 {[%emt 0:00:09] Prevents Nb4} Nc7 {[%emt 0:00:17]} 13. Bg3 {[%emt 0:07:50]} Bxg3 {[%emt 0:13:35]} 14. Nxg3 {[%emt 0:00:06]} c5 $146 {[%emt 0:03:48]} (14... Ne6 15. O-O Ng5 16. Bf5 Nfe4 17. Bxe4 dxe4 18. Ncxe4 Nxe4 19. Nxe4 Bf5 20. f3 Qd5 {½-½ Kretchetov,A (2146)-Matta,N (2285) New York Fall IM-C 2024 (6)}) 15. dxc5 {[%emt 0:14:25]} d4 {[%emt 0:06:48]} 16. Nd1 {[%emt 0:03:51]} (16. Nce4 $16) 16... Nfd5 {[%emt 0:06:59]} (16... Ncd5 $11) 17. O-O $16 {[%emt 0:14:19]} Qh4 {[%emt 0:26:43]} 18. exd4 {[%emt 0:05:28] [#] Threatens to win with Nc3.} (18. Qa4 {simplifies} Rd8 19. Qxd4 Qxd4 20. exd4 Ne6 21. Ne3) 18... Nf4 $1 {[%emt 0:14:40][%cal Of4g2]} 19. Ne3 {[%emt 0:15:01]} Bxh3 {[%emt 0:00:33]} 20. Rfe1 $2 {[%emt 0:11:27]} (20. gxh3 Nxh3+ (20... Rxe3 21. Bh7+ Kh8 22. fxe3 $16) 21. Kg2 Nf4+ 22. Kg1 (22. Kf3 Nce6 23. Bh7+ Kh8 24. Ke4 f5+ 25. Ke5 Nxc5+ 26. Kxf5 Qg5#) 22... Nh3+ (22... Rxe3 23. Bh7+ Kh8 24. fxe3 $11) 23. Kg2 Nf4+ 24. Kg1 Nh3+ $11) ({Better is} 20. Bh7+ $18 Kh8 21. Bf5 (21. gxh3 Nxh3+ 22. Kg2 Nf4+ 23. Kg1 g6 $11)) 20... Rxe3 $11 {[%emt 0:04:35] The position is equal.} 21. Rxe3 {[%emt 0:01:20]} ({Inferior is} 21. fxe3 Nxd3 (21... Qxg3 $2 {is the wrong capture.} 22. exf4 Ne6 23. Be4 $18) (21... Nxg2 22. Qf2 $11) 22. Qxd3 Qxg3 $19) 21... Bxg2 {[%emt 0:00:47]} 22. Be4 {[%emt 0:00:33] Repels Ncd5} Qh3 {[%emt 0:00:30]} 23. Bf5 {[%emt 0:00:05]} Qh4 {[%emt 0:00:08]} 24. Be4 {[%emt 0:00:04]} Qh3 {[%emt 0:01:24] [#] Strongly threatening ...g6.} 25. Bf5 {[%emt 0:02:32]} Qh4 {[%emt 0:00:09] Weighted Error Value: White=0.32/Black=0.19 (very precise)   Missed win:     	White=1     	---        Mistake:       	White=1     	Black=2      Inaccurate:     	White=1     	Black=1      OK:         	White=5     	Black=8      Best:        	White=1     	Black=1      Strong:       	---       	Black=1} 1/2-1/2

[Event "4NCL Div 1 2024-25"]
[Site "England"]
[Date "2025.01.25"]
[Round "3.20"]
[White "Price, Gwilym"]
[Black "Badacsonyi, Frankie"]
[Result "1/2-1/2"]
[Annotator "TA"]
[ECO "B88"]
[WhiteElo "2223"]
[BlackElo "2266"]
[PlyCount "80"]
[EventDate "2024.11.23"]
[EventType "team-tourn"]
[EventCountry "ENG"]
[SourceTitle "playchess.com"]
[Source "ChessBase"]
[SourceQuality "1"]
[TimeControl "40/6000+30:3000+30"]

{[%evp 27,80,7,4,-25,0,-47,-47,-203,-199,-200,-188,-188,-118,-101,-106,-89,-66,-68,-52,-44,-53,-57,-69,-70,0,0,0,0,0,0,0,0,19,19,211,-277,-224,-214,-249,-285,-109,-152,-152,-152,-152,-152,-152,-152,-152,-152,-152,-152,-152,-152,-152]} 1. e4 {[%emt 0:10:02]} c5 {[%emt 0:10:33]} 2. Nf3 {[%emt 0:00:05][%cal Bg1f3,Bf3d4,Bd4b5][%mdl 32]} d6 {[%emt 0:00:14]} 3. d4 {[%emt 0:00:03]} cxd4 {[%emt 0:00:04]} 4. Nxd4 {[%emt 0:00:04]} Nf6 {[%emt 0:00:07]} 5. Nc3 {[%emt 0:00:03]} Nc6 {[%emt 0:00:56]} 6. Bc4 {[%emt 0:00:13]} Qb6 {[%emt 0:01:07]} 7. Ndb5 {[%emt 0:00:06]} a6 {[%emt 0:00:52]} 8. Be3 {[%emt 0:00:03]} Qa5 {[%emt 0:00:08]} 9. Nd4 {[%emt 0:00:07]} e6 {[%emt 0:00:35]} 10. O-O {[%emt 0:00:31]} Be7 {[%emt 0:01:04]} 11. Bb3 {[%emt 0:00:55]} Qc7 {[%emt 0:02:47]} 12. f4 {[%emt 0:01:57][%cal Bf2f4,Bf4f5][%mdl 32]} b5 {[%emt 0:06:20]} 13. f5 {[%emt 0:12:10]} Nxd4 {[%emt 0:03:14]} 14. Qxd4 {[%emt 0:03:39]} O-O {[%emt 0:02:43]} 15. Rf3 $146 {[%emt 0:28:03] B88: Sicilian: Sozin Attack.} (15. fxe6 {simplifies} Bxe6 16. Nd5 Nxd5 17. exd5 Bd7 18. Qd2) (15. Kh1 Bd7 16. a3 Ng4 17. Bf4 Ne5 18. Rad1 Rad8 19. Qe3 Bc8 20. Qh3 Nc4 21. Rd3 Bf6 22. Rg3 Qe7 23. Bh6 {1-0 Escalante Ramirez,B (2485)-De la Colina,N (2170) Philadelphia op 17th 2024 (3)}) 15... Ng4 {[%emt 0:09:36]} 16. Rg3 {[%emt 0:01:38] A sharp opening} (16. fxe6 $11 Bxe6 17. h3) 16... Bf6 $15 {[%emt 0:02:44] Successful Defense Black} (16... exf5 $2 17. Nd5 Qd8 18. exf5 $18) 17. Rxg4 $2 {[%emt 0:00:21]} Bxd4 $19 {[%emt 0:00:07]} 18. Bxd4 {[%emt 0:00:05]} g6 {[%emt 0:03:26]} (18... exf5 19. Rxg7+ Kh8 20. Rxf7+ Kg8 21. Rg7+ Kh8 22. Rg8#) 19. Rf1 {[%emt 0:23:24]} b4 {[%emt 0:03:02]} (19... Qe7 $19 20. Rf3 a5) 20. Nd5 $17 {[%emt 0:01:22]} exd5 {[%emt 0:10:48]} 21. Bxd5 {[%emt 0:00:07] [#]} Qe7 $1 {[%emt 0:07:09]} 22. Bxa8 {[%emt 0:12:51] [#] Threatens to win with Bd5. A strong pair of Bishops.} Bxf5 $1 {[%emt 0:00:59]} 23. exf5 {[%emt 0:01:32]} Rxa8 {[%emt 0:00:03]} 24. fxg6 {[%emt 0:00:52]} fxg6 {[%emt 0:01:07]} 25. Rgf4 {[%emt 0:02:08] Prevents Rf8.} Qe6 {[%emt 0:02:39]} (25... Rc8 $15 26. c3 Qe6) 26. h4 $11 {[%emt 0:01:46]} Qd5 {[%emt 0:05:28]} 27. c3 {[%emt 0:05:33]} bxc3 {[%emt 0:01:41]} 28. bxc3 {[%emt 0:00:07]} Re8 {[%emt 0:09:44]} 29. a4 {[%emt 0:03:19]} Re5 {[%emt 0:00:58]} 30. c4 {[%emt 0:01:22]} Qc6 $2 {[%emt 0:03:19] [#]} (30... Qe6 $11 {and Black has nothing to worry.}) 31. c5 $4 {[%emt 0:00:53][%mdl 8192]} Rf5 $1 $19 {[%emt 0:00:53]} 32. cxd6 {[%emt 0:00:29]} Rxf4 {[%emt 0:00:16]} ({Inferior is} 32... Qxa4 33. Rxf5 Qxd4+ 34. R5f2 $11) 33. Rxf4 {[%emt 0:00:10]} Qxd6 $2 {[%emt 0:00:24][%mdl 4096] Endgame KQ-KRB} (33... Qxa4 $19 {...Qb4 is the strong threat.} 34. Be5 Qb5) 34. g3 {[%emt 0:00:21]} Qd5 {[%emt 0:01:03] Black is clearly better.} 35. Bf2 {[%emt 0:00:41]} h6 {[%emt 0:02:25]} 36. Rd4 {[%emt 0:00:10]} Qe5 {[%emt 0:00:39]} 37. Kg2 {[%emt 0:00:35]} g5 {[%emt 0:02:11]} 38. hxg5 {[%emt 0:00:06]} hxg5 {[%emt 0:00:05]} 39. Kg1 {[%emt 0:00:18]} Kh7 {[%emt 0:01:16]} 40. Kg2 {[%emt 0:00:50]} Kg6 {[%emt 0:00:59] Weighted Error Value: White=0.32/Black=0.29 (precise)   Loses game:     	---       	Black=1      Missed win:     	White=1     	Black=1      Mistake:       	White=2     	Black=2      Inaccurate:     	White=1     	---        OK:         	White=10    	Black=7      Best:        	White=1     	Black=3      Strong:       	---       	Black=1} 1/2-1/2

[Event "4NCL Div 1 2024-25"]
[Site "England"]
[Date "2025.01.25"]
[Round "3.21"]
[White "Yoon, Jacob D"]
[Black "Dong, Bao Nghia"]
[Result "1-0"]
[Annotator "TA"]
[ECO "A10"]
[WhiteElo "2270"]
[BlackElo "2247"]
[PlyCount "81"]
[EventDate "2024.11.23"]
[EventType "team-tourn"]
[EventCountry "ENG"]
[SourceTitle "playchess.com"]
[Source "ChessBase"]
[SourceQuality "1"]
[TimeControl "40/6000+30:3000+30"]

{[%evp 9,81,-12,-2,-4,-7,-1,17,0,30,17,8,10,4,0,41,22,19,22,174,171,152,162,558,509,482,166,162,150,150,88,85,116,170,159,295,284,267,281,303,312,333,325,333,317,310,297,277,209,262,188,402,390,395,397,833,833,968,893,826,550,1439,1399,1236,977,1396,1132,1506,1484,6860,6810,5914,5976,6831,5509]} 1. Nf3 {[%emt 0:10:05]} f5 {[%emt 0:10:20]} 2. c4 {[%emt 0:02:25]} g6 {[%emt 0:00:08]} 3. Nc3 {[%emt 0:00:03]} Bg7 {[%emt 0:00:06]} 4. d3 {[%emt 0:01:43]} Nf6 {[%emt 0:01:14]} 5. Bd2 {[%emt 0:01:07]} c6 $146 {[%emt 0:01:13]} (5... d6 6. b3 O-O 7. Rc1 c6 8. g3 e5 9. e4 fxe4 10. dxe4 Na6 11. Bg2 Nc5 {0-1 Korthase,E (1227)-Pietschker,M (1581) Mecklenburg VP LL2 Ost 1011 2010 (8.8)}) 6. Qc1 {[%emt 0:00:24] A10: English Opening: Unusual Replies for Black.} d6 {[%emt 0:03:40]} 7. Bh6 {[%emt 0:00:31]} Bxh6 {[%emt 0:00:09]} 8. Qxh6 {[%emt 0:00:05] The position is equal.} Qb6 {[%emt 0:00:10]} 9. Qd2 {[%emt 0:06:43]} e5 {[%emt 0:01:18]} 10. g3 {[%emt 0:01:51]} O-O {[%emt 0:05:04]} 11. Bg2 {[%emt 0:02:16]} f4 {[%emt 0:00:22]} 12. d4 {[%emt 0:06:29]} e4 {[%emt 0:12:55]} 13. Ng5 {[%emt 0:00:48]} e3 {[%emt 0:00:04]} 14. fxe3 $18 {[%emt 0:00:03]} fxe3 {[%emt 0:00:08]} 15. Qxe3 {[%emt 0:00:06]} Qxb2 {[%emt 0:00:13]} (15... Bf5 {is a better chance.}) 16. O-O {[%emt 0:00:04]} Bf5 {[%emt 0:00:19] [#] Wards off Rab1} 17. Rxf5 $2 {[%emt 0:12:46]} gxf5 {[%emt 0:02:37]} 18. Rb1 {[%emt 0:00:01]} Qc2 {[%emt 0:01:04]} 19. Rxb7 {[%emt 0:23:19]} ({White should play} 19. Rc1 Qb2 20. Rb1) 19... Nbd7 $16 {[%emt 0:00:21] [#] White must now prevent ...Rae8.} 20. Ne6 $1 $36 {[%emt 0:00:06][%mdl 2048] Keeping Black busy. Dancing on a razor blade. White is much more active.} (20. Bxc6 Rae8 21. Ne6 f4 22. gxf4 Rf7) 20... Rf7 {[%emt 0:02:28]} (20... f4 $16 {might work better.} 21. gxf4 (21. Qxf4 Qxc3 22. Qg5+ Kf7 $11) 21... Rf7) 21. Bxc6 $18 {[%emt 0:00:33][%cal Ob7d7]} f4 {[%emt 0:00:30] Black is weak on the light squares} (21... Ng4 $16 22. Qd3 Qc1+ 23. Nd1 Rb8) 22. Nxf4 {[%emt 0:06:03]} ({Don't play} 22. gxf4 $6 Re8 $16) 22... Re8 {[%emt 0:00:20] [#]} 23. Qd3 {[%emt 0:00:40]} Qc1+ {[%emt 0:00:37]} 24. Nd1 {[%emt 0:00:01]} Rb8 {[%emt 0:04:35]} 25. Rxb8+ {[%emt 0:02:21]} (25. Rxa7 Nc5 26. dxc5 Rxa7 27. Qxd6 (27. cxd6 $2 {is the wrong capture.} Rb1 $19) 27... Rf8 $16) 25... Nxb8 {[%emt 0:00:06]} 26. Ba4 {[%emt 0:01:40]} Kh8 {[%emt 1:03:29]} 27. Kg2 {[%emt 0:14:37]} Nbd7 {[%emt 0:00:00]} 28. Qc2 {[%emt 0:05:39]} Qa3 {[%emt 0:00:00]} 29. Qb3 {[%emt 0:00:02]} Qc1 {[%emt 0:00:00]} (29... Qxb3 30. Bxb3 (30. axb3 Ne4 $18) 30... Nb8) 30. c5 {[%emt 0:00:53]} Rg7 {[%emt 0:00:00]} 31. Ne6 {[%emt 0:01:26][%cal Bf4e6,Be6g7,Bg7f5][%mdl 32]} Qd2 $2 {[%emt 0:00:00]} (31... Rg8 32. cxd6 Qd2) 32. Nxg7 {[%emt 0:02:35] White is clearly winning.} Qxe2+ {[%emt 0:00:00]} 33. Nf2 {[%emt 0:04:47]} Ng4 {[%emt 0:00:00]} 34. Bxd7 {[%emt 0:00:02]} Ne3+ {[%emt 0:00:00] [#]} 35. Qxe3 $3 {[%emt 0:00:04]} Qxe3 {[%emt 0:00:00]} 36. Nf5 {[%emt 0:00:04]} Qa3 {[%emt 0:00:00]} 37. c6 {[%emt 0:00:41] and c7 should not be overlooked} Qa5 {[%emt 0:00:00]} 38. Nxd6 {[%emt 0:03:23]} Kg8 {[%emt 0:00:00]} 39. Be6+ {[%emt 0:00:20]} Kf8 {[%emt 0:00:00]} 40. d5 {[%emt 0:00:31][%cal Od6b5] Intending Nb5! and mate.} Ke7 {[%emt 0:00:00] [#]} 41. Nb5 $1 {[%emt 0:50:49] Weighted Error Value: White=0.31/Black=1.11  Mistake:       	White=2     	Black=6      Inaccurate:     	---       	Black=2      OK:         	White=10    	Black=8      Best:        	White=5     	Black=1      Strong:       	White=1     	---} 1-0